Cogmind - Beta 16 @@@ ROGUE MODE // 2025.11.21 @ 18:46:15 // Winter2019/RPGLIKE Player: Gallgagger Result: Self-destructed Performance ------------- Evolutions (0) 0 Regions Visited (4) 800 Robots Destroyed (46) 230 Value Destroyed (1252) 1252 Prototype IDs (19) 380 Alien Tech Used (0) 0 Bonus (250) 250 TOTAL SCORE: 2912 Bonus ------- Follower Combat Kills 124 Registered with UFD 300 Friendly Fire -174 Cogmind --------- Core Integrity 600/600 Matter 250/300 Energy 150/150 System Corruption 0% Temperature Cool (0) Movement Flying (29) Location -9/Scraptown Parts ------- > --- POWER (2) -------- Light Ion Engine Light Ion Engine (fused) > --- PROPULSION (3) --- VTOL Module VTOL Module Cesium-ion Thruster > --- UTILITY (4) ------ Improved Terrain Scanner Seismic Detector > --- WEAPON (3) ------- High-powered Shock Rifle Autobeam > --- INVENTORY (3) ---- Tower Shield Peak State ------------ > --- POWER ------------ Light Ion Engine Light Ion Engine > --- PROPULSION ------- VTOL Module VTOL Module Cesium-ion Thruster > --- UTILITY ---------- Improved Terrain Scanner Seismic Detector > --- WEAPON ----------- Autobeam Heavy Plasma Cannon Makeshift Sword > --- INVENTORY -------- Tower Shield [Rating: 26] Favorites ----------- Power Light Ion Engine Engine Light Ion Engine Propulsion Flight Unit Wheel Wheel Flight Unit Flight Unit Utility Improved Terrain Scanner Device Improved Terrain Scanner Protection Light Armor Plating Weapon Assault Rifle Energy Gun Particle Gun Energy Cannon Heavy Plasma Cannon Ballistic Gun Assault Rifle Special Weapon Flamer Slashing Weapon Makeshift Sword Build | -11 -10 -10 -9 -9 ------- Run | Yrd Mat Sub Rec Scr Slots Evolved 8 | 3 3 1 . 1 Power 1 | . 1 . . . Propulsion 2 | 1 1 . . . Utility 3 | 1 1 1 . . Weapon 2 | 1 . . . 1 Parts Attached 26 | 8 9 4 . 5 Power 3 | 1 2 . . . Engine 3 | 1 2 . . . Core . | . . . . . Reactor . | . . . . . Propulsion 9 | 3 3 . . 3 Treads . | . . . . . Leg . | . . . . . Wheel 3 | 3 . . . . Hover . | . . . . . Flight 6 | . 3 . . 3 Utility 4 | 2 1 1 . . Device 3 | 2 . 1 . . Storage . | . . . . . Processor . | . . . . . Hackware . | . . . . . Protection 1 | . 1 . . . Artifact . | . . . . . Weapon 10 | 2 3 3 . 2 Energy Gun 5 | 1 1 2 . 1 Energy Cannon 1 | . . . . 1 Ballistic Gun 2 | 1 1 . . . Ballistic Cannon . | . . . . . Launcher . | . . . . . Special Weapon 1 | . 1 . . . Impact Weapon . | . . . . . Slashing Weapon 1 | . . 1 . . Piercing Weapon . | . . . . . Special Melee Weapon . | . . . . . Unidentified Prototypes 1 | . . 1 . . Corrupted Parts 1 | . 1 . . . System Corruption 4 | . 4 . . . Parts Lost . | . . . . . Power . | . . . . . Propulsion . | . . . . . Utility . | . . . . . Weapon . | . . . . . Highest Loss Streak . | . . . . . To Critical Strikes . | . . . . . Average Backups 1 | . 1 1 2 1 Power . | . . . . . Propulsion . | . 1 . . . Utility . | . . . 1 1 Weapon . | . . . 1 . Tool/Special . | . . . . . Unused Backups 4 | . . 2 . 2 Power . | . . . . . Propulsion 2 | . . 2 . . Utility 1 | . . . . 1 Weapon 1 | . . . . 1 Tool/Special . | . . . . . Average Slot Usage (%) 92 | . 99 91 90 77 Engine 16 | . 14 18 18 16 Wheel 6 | . 17 . . . Flight 20 | . 10 27 27 25 Device 25 | . 27 26 27 17 Energy Gun 11 | . 13 9 9 13 Ballistic Gun 7 | . 13 6 . . Slashing Weapon 2 | . . 2 9 2 Peak Build Rating 26 | 9 13 20 20 26 Average Rating 14 | 4 9 15 20 21 On Entrance 12 | . 9 13 20 20 Avg Prop Armor Cover (%) . | . . . . . Naked Turns . | . . . . . Heaviest Build 18 | 11 18 18 16 18 Greatest Support 26 | 26 20 17 17 18 Greatest Overweight (x) 1 | . 1 1 . . Average Overweight (x) . | . . . . . Largest Inventory Capacity 3 | 2 2 3 3 3 Average Capacity 2 | 2 2 2 3 3 Most Carried 3 | 1 2 3 3 3 Average Carried 2 | . 1 2 3 2 Final Capacity 3 | 2 2 3 3 3 Final Carried 3 | 1 2 3 3 2 Class Distribution -------------------- 59% | Scavenger-Mutant 27% | Mutant 12% | Scavenger-Sprinter Dominant Class ---------------- Mutant | -10/Materials Scavenger-Mutant | -10/Subcaves Scavenger-Mutant | -9/Recycling Scavenger-Sprinter | -9/Scraptown Resources | -11 -10 -10 -9 -9 ----------- Run | Yrd Mat Sub Rec Scr Matter Collected 1204 | 301 486 380 17 20 Remotely . | . . . . . Salvage Created 1407 | 147 1065 56 139 . Parts 100 | 8 66 16 10 . Haulers Intercepted 1 | . 1 . . . Recyclers Shooed . | . . . . . Parts Field Recycled . | . . . . . Retrieved Matter . | . . . . . Parts Self-Destructed 4 | . . 4 . . Prevented . | . . . . . Parts Restored . | . . . . . Kills | -11 -10 -10 -9 -9 ------- Run | Yrd Mat Sub Rec Scr Combat Hostiles Destroyed 37 | . 29 4 4 . Melee 1 | . . . 1 . Guns 34 | . 27 4 3 . Cannons 1 | . 1 . . . AOE 1 | . 1 . . . Classes Destroyed 10 | 2 6 1 1 . Worker 1 | . 1 . . . Tunneler 3 | 2 1 . . . Hauler 1 | . 1 . . . Recycler 2 | 1 1 . . . Operator 1 | . 1 . . . Swarmer 8 | . 8 . . . Grunt 21 | . 18 2 1 . Sentry 3 | . . 1 2 . Hunter 1 | . . . 1 . Subdweller 5 | . 3 2 . . Best Kill Streak 3 | 2 3 2 2 . Combat Bots Only 3 | . 3 2 2 . Max Kills in Single Turn 2 | 1 2 1 1 . Gunslinging 1 | . 1 . . . Exploded 1 | . 1 . . . Melee 1 | . . . 1 . Uniques/NPCs Destroyed . | . . . . . Combat | -11 -10 -10 -9 -9 -------- Run | Yrd Mat Sub Rec Scr Hostile Shots Fired 206 | . 140 50 16 . Missed 83 | . 52 26 5 . Hits 123 | . 88 24 11 . Projectile 123 | . 88 24 11 . Critical Strikes 1 | . 1 . . . Damage Taken 1665 | . 1151 342 172 . Core 1342 | . 950 252 140 . Absorbed by Shields . | . . . . . Redirected to Core 1027 | . 687 228 112 . Regen/Repaired (Parts) 12 | . 12 . . . Core Remaining (%) 100 | 100 . . . . Volleys Fired 152 | 7 104 41 . . Largest 2 | 2 2 2 . . Hottest 165 | 60 165 95 . . Shots Fired 290 | 13 203 63 11 . Gun 278 | 13 191 63 11 . Cannon . | . . . . . Launcher . | . . . . . Special 12 | . 12 . . . Kinetic 131 | 7 92 32 . . Thermal 119 | . 77 31 11 . Explosive . | . . . . . Electromagnetic 40 | 6 34 . . . Robot Hit Streak 20 | 6 20 13 12 . Robot Miss Streak 3 | 2 3 3 2 . Penetration Max . | . . . . . Secondary Targets 1 | . 1 . . . Max Gunslinging Chain 1 | . 1 . . . Autonomous 12 | . . 1 11 . Shots Hit Robots 206 | 9 143 37 17 . Core Hits 86 | 3 54 17 12 . Critical Kills . | . . . . . Critical Parts Destroyed . | . . . . . Critical Strikes 5 | . 2 2 1 . Burn 3 | . 1 2 . . Corrupt 1 | . 1 . . . Sever 1 | . . . 1 . Melee Attacks 22 | . . 13 9 . Impact . | . . . . . Slashing 22 | . . 13 9 . Piercing . | . . . . . Sneak Attacks 3 | . . 1 2 . Combat Hostiles . | . . . . . Follow-up Attacks . | . . . . . Damage Inflicted 3235 | 138 2051 605 441 . Guns 2620 | 138 1825 531 126 . Cannons . | . . . . . Explosions 125 | . 125 . . . Melee 389 | . . 74 315 . Ramming . | . . . . . Kinetic 953 | 69 648 236 . . Thermal 1479 | . 1058 295 126 . Explosive . | . . . . . Electromagnetic 414 | 69 345 . . . Impact . | . . . . . Slashing 389 | . . 74 315 . Piercing . | . . . . . Highest Corruption 4 | . 4 4 4 . Average Corruption 4 | . 4 4 4 . Corruption Purged . | . . . . . Corruption Blocked . | . . . . . Effects 72 | . 29 28 15 . Message Errors 17 | . 6 6 5 . Matter Fused 16 | . 5 11 . . Heat Flow Errors 11 | . 5 2 4 . Energy Discharges 5 | . 1 2 2 . Parts Fused 1 | . . . 1 . Data Loss (minor) 9 | . 4 4 1 . Data Loss (major) 4 | . 1 1 2 . Misfires 3 | . 2 1 . . Alerts 2 | . 1 1 . . Weapon Failures 4 | . 4 . . . Overload Shots . | . . . . . Overflow Damage 21 | . 7 . 14 . Projectiles . | . . . . . Explosions 7 | . 7 . . . Melee 14 | . . . 14 . Knockbacks . | . . . . . Impact . | . . . . . Kinetic . | . . . . . Secondary . | . . . . . Self-Inflicted Damage 60 | . 60 . . . Shots 2 | . 2 . . . Rammed . | . . . . . Targets Rammed . | . . . . . Kicked . | . . . . . Crushed . | . . . . . Highest Temperature 243 | . 207 83 243 . Average Temperature 65 | . 55 50 78 . Received Heat Transfer 525 | . 336 135 54 . Siege Activations . | . . . . . Martial Activations . | . . . . . Shielding Activations . | . . . . . Robots Disrupted . | . . . . . Combat Hostiles . | . . . . . Robots Corrupted . | . . . . . Combat Hostiles . | . . . . . Parts Fried 1 | . 1 . . . Impact Corruptions . | . . . . . Robots Melted 1 | . 1 . . . Combat Hostiles . | . . . . . Parts Melted 5 | . 5 . . . Heat Transferred 4281 | . 2992 814 475 . Parts Sabotaged . | . . . . . Parts Stolen . | . . . . . Parts Stripped . | . . . . . Power Chain Reactions 2 | . 2 . . . Alert | -11 -10 -10 -9 -9 ------- Run | Yrd Mat Sub Rec Scr Maximum Alert Level 1 | . 1 . 1 . Low Security (%) 87 | 100 84 . 95 . Level 1 12 | . 15 . 4 . Level 2 . | . . . . . Level 3 . | . . . . . Level 4 . | . . . . . Level 5 . | . . . . . High Security . | . . . . . Max Security . | . . . . . Peak Influence 357 | 10 357 . 204 . Initial 18 | . . . 18 . Average 110 | 2 103 . 149 . Influence Increases 1429 | 15 794 244 376 . Destroy 0b10 Robot/C 820 | . 520 180 120 . Destroy 0b10 Robot/NC 40 | 15 25 . . . Destroy Leader 122 | . 112 10 . . Allied During Kill 94 | . . 54 40 . Successful Hack 12 | . 6 . 6 . Select Force Hacks 240 | . 30 . 210 . Disable Machine 45 | . 45 . . . Destroy Structure 11 | . 11 . . . Lose Combat Pursuer 45 | . 45 . . . Influence Decreases 1429 | 15 453 547 282 132 Entered New Map 317 | . . 165 20 132 Time Decay 1092 | 15 453 362 262 . Lost Ally 20 | . . 20 . . Squads Dispatched 8 | . 8 . . . Investigation 6 | . 6 . . . Extermination . | . . . . . Reinforcement 2 | . 2 . . . Assault . | . . . . . Garrison . | . . . . . Intercept . | . . . . . Searches Triggered . | . . . . . Construction Impeded . | . . . . . Haulers Reinforced . | . . . . . Active Scanning Responses . | . . . . . Cargo Convoy Interrupts . | . . . . . Stealth | -11 -10 -10 -9 -9 --------- Run | Yrd Mat Sub Rec Scr Distress Signals 1 | . 1 . . . Communications Jammed . | . . . . . Distress Signals . | . . . . . Times Spotted 74 | . 49 19 6 . Peak Tracking Total 4 | . 4 2 2 . Tactical Retreats 1 | . 1 . . . Traps | -11 -10 -10 -9 -9 ------- Run | Yrd Mat Sub Rec Scr Traps Triggered 2 | . 1 1 . . Indirectly . | . . . . . Trap Hack Attempts . | . . . . . Triggered . | . . . . . Disarmed . | . . . . . Reprogrammed . | . . . . . Reused . | . . . . . Traps Extracted . | . . . . . Installed . | . . . . . Triggered . | . . . . . Machines | -11 -10 -10 -9 -9 ---------- Run | Yrd Mat Sub Rec Scr Machines Disabled 7 | . 3 4 . . Max in Single Turn 1 | . 1 1 . . Machines Repaired . | . . . . . Machines Dismantled . | . . . . . Machines Sabotaged . | . . . . . Overloaded Fab Kills . | . . . . . Hacking | -11 -10 -10 -9 -9 --------- Run | Yrd Mat Sub Rec Scr Machines Accessed 19 | . 7 2 9 1 Terminals 6 | . 5 . 1 . Fabricators . | . . . . . Repair Stations 1 | . 1 . . . Recycling Units 9 | . 1 . 8 . Scanalyzers . | . . . . . Garrison Access . | . . . . . Total Hacks 34 | . 16 5 12 1 Successful 21 | . 7 5 8 1 Failed 13 | . 9 . 4 . Catastrophic 3 | . 3 . . . Database Lockouts . | . . . . . Manual 28 | . 16 . 12 . Terminals 15 | . 14 . 1 . Fabricators . | . . . . . Repair Stations 1 | . 1 . . . Recycling Units 12 | . 1 . 11 . Scanalyzers . | . . . . . Garrison Access . | . . . . . Terminal Hacks 8 | . 1 5 1 1 Record 4 | . . 4 . . Robot Analysis 2 | . 1 . 1 . Proto ID Catalog 2 | . . 1 . 1 Fabricator Hacks . | . . . . . Repair Station Hacks . | . . . . . Recycling Unit Hacks . | . . . . . Scanalyzer . | . . . . . Garrison Access Hacks . | . . . . . Unauthorized Hacks 13 | . 6 . 7 . Terminals 4 | . 4 . . . Sabotage 4 | . 4 . . . Fabricators . | . . . . . Repair Stations 1 | . 1 . . . Patch 1 | . 1 . . . Recycling Units 8 | . 1 . 7 . Tunnel 8 | . 1 . 7 . Scanalyzers . | . . . . . Garrison Access . | . . . . . Data Cores Recovered . | . . . . . Used . | . . . . . Hacking Detections 5 | . 4 . 1 . Full Trace Events 2 | . 1 . 1 . Feedback Events . | . . . . . Feedback Blocked . | . . . . . Robot Schematics Acquired . | . . . . . Robots Built . | . . . . . Authchips . | . . . . . Time . | . . . . . Total Robot Build Rating . | . . . . . Part Schematics Acquired . | . . . . . Parts Built . | . . . . . Authchips . | . . . . . Time . | . . . . . Total Part Build Rating . | . . . . . Part Studies Acquired . | . . . . . Parts Repaired . | . . . . . Time . | . . . . . Parts Recycled . | . . . . . Recycled Matter . | . . . . . Retrieved Matter . | . . . . . Retrieved Components . | . . . . . Parts Scanalyzed . | . . . . . Part Schematics Acquired . | . . . . . Parts Damaged . | . . . . . Bothacking | -11 -10 -10 -9 -9 ------------ Run | Yrd Mat Sub Rec Scr Used RIF Installer . | . . . . . Robots Hacked . | . . . . . Non-combat . | . . . . . Combat . | . . . . . Robot Hacks Applied . | . . . . . Relay Couplers Released . | . . . . . Fabnet Peak Effective % . | . . . . . Robots Rewired 5 | . . . 5 . Allies Hacked . | . . . . . Hacks Repelled . | . . . . . Allies | -11 -10 -10 -9 -9 -------- Run | Yrd Mat Sub Rec Scr Total Allies 20 | . . 15 5 . Largest Group 17 | . . 13 17 17 Highest-Rated Group 288 | . . 247 288 288 Highest-Rated Ally 27 | . . 19 27 27 Total Orders . | . . . . . Ally Attacks 13 | . . 9 4 . Total Damage 382 | . . 316 66 . Kills 9 | . . 7 2 . Allies Corrupted . | . . . . . Allies Melted . | . . . . . Intel | -11 -10 -10 -9 -9 ------- Run | Yrd Mat Sub Rec Scr Active Infowar (turns) 4025 | 6 1600 1274 563 582 Terrain 4025 | 6 1600 1274 563 582 Seismic 4023 | 4 1600 1274 563 582 Robot Analysis Total 2 | . 1 . 1 . Derelict Logs Recovered 2 | . . 2 . . Drone Launches . | . . . . . Drone Recoveries . | . . . . . Exploration | -11 -10 -10 -9 -9 ------------- Run | Yrd Mat Sub Rec Scr Turns Passed 4105 | 86 1600 1274 563 582 Spaces Moved 5687 | 67 1362 2451 875 932 Core 3 | 3 . . . . Treads . | . . . . . Legs . | . . . . . Wheels 606 | 64 542 . . . Hover . | . . . . . Flight 5078 | . 820 2451 875 932 Fastest Speed 29 | 50 34 34 34 29 Average Speed 38 | 81 53 34 34 30 Slowest Speed 117 | 100 117 114 34 34 Overloaded Moves . | . . . . . Propulsion Burnouts . | . . . . . Robots Hopped 38 | . 24 2 12 . Potential Cave-ins . | . . . . . Cave-ins Triggered . | . . . . . Exploration Rate (%) 74 | 3 96 91 99 82 Regions Visited 4 Branch Regions 3 Pre-discovered Areas 9 | . 1 1 7 . Known Exits Taken . | . . . . . Unknown Exits Taken 4 | 1 1 1 1 . Scrap Searched 11 | . . 8 . 3 Spaces Dug . | . . . . . Terrain Destroyed 5 | . 5 . . . Melee . | . . . . . Projectile . | . . . . . AOE 5 | . 5 . . . Terrain Rammed . | . . . . . Walls Destroyed . | . . . . . Machines Disabled . | . . . . . Actions | -11 -10 -10 -9 -9 --------- Run | Yrd Mat Sub Rec Scr Total 7211 | 81 1980 2798 1118 1234 Wait 1157 | . 482 225 162 288 Move 5607 | 66 1313 2446 850 932 Hop 38 | . 24 2 12 . Pick Up 9 | . 3 5 . 1 Fast Attach 12 | 7 3 1 . 1 Attach 5 | . 1 2 . 2 Detach 3 | . 1 . . 2 Swap 39 | 1 14 20 . 4 Drop 14 | . 4 6 . 4 Fire 152 | 7 104 41 . . Melee 22 | . . 13 9 . Ram . | . . . . . Kick . | . . . . . Crush . | . . . . . Escape Stasis . | . . . . . Rewire 74 | . . . 74 . Trap . | . . . . . Miscellaneous 79 | . 31 37 11 . Route ------- -11/Scrapyard -10/Materials (discovered 5 exits: [*Mat x3] / [*Min] / *Sub) -10/Subcaves (discovered 3 exits: [*Mat x2] / *Rec) -9/Recycling (discovered 2 exits: [*Fac] / *Scr) -9/Scraptown (discovered 1 exit: [*Fac]) History --------- Turn | Location | Event 1 | -11/Scrapyard | Upgraded with Propulsion slot (x1) 1 | -11/Scrapyard | Upgraded with Utility slot (x1) 1 | -11/Scrapyard | Upgraded with Weapon slot (x1) 28 | -11/Scrapyard | Discovered new exit (range 14) 87 | -11/Scrapyard | Entered Materials 112 | -10/Materials | Discovered new exit (range 12) 132 | -10/Materials | Discovered new exit (range 14) 206 | -10/Materials | Discovered new exit (range 15) 313 | -10/Materials | Build established: Mutant 560 | -10/Materials | Discovered new exit (range 16) 627 | -10/Materials | Discovered new exit (range 9) 914 | -10/Materials | Build established: Scavenger-Mutant 981 | -10/Materials | Reached level 2 987 | -10/Materials | Derelicts attacked the area 1040 | -10/Materials | Core integrity fell below 50% 1105 | -10/Materials | Core integrity fell below 20% 1350 | -10/Materials | Build established: Mutant 1442 | -10/Materials | Reached level 3 1583 | -10/Materials | Upgraded with Power slot (x1) 1583 | -10/Materials | Upgraded with Propulsion slot (x1) 1583 | -10/Materials | Upgraded with Utility slot (x1) 1687 | -10/Materials | Entered Subcaves 1689 | -10/Subcaves | Shifting Twisted Machinery released Multitool 1689 | -10/Subcaves | Reached level 4 1696 | -10/Subcaves | Discovered new exit (range 12) 1760 | -10/Subcaves | Shifting Twisted Machinery released Mak. System Restoration Module 1769 | -10/Subcaves | A swath of the cavern ceiling suddenly collapsed 1835 | -10/Subcaves | Visited triangular shrine 1837 | -10/Subcaves | Upgraded with Utility slot (x1) 1837 | -10/Subcaves | Found Prototype Device 1837 | -10/Subcaves | Identified V3-11A's Pendant 1842 | -10/Subcaves | Befriended Subdweller 1868 | -10/Subcaves | Visited 4L-MR0's lab 1899 | -10/Subcaves | Build established: Scavenger-Mutant 1926 | -10/Subcaves | Learned Materials emergency access door positions 1947 | -10/Subcaves | Befriended Subdweller 1952 | -10/Subcaves | Befriended Subdweller 1977 | -10/Subcaves | Befriended Subdweller 1977 | -10/Subcaves | Befriended Subdweller 2017 | -10/Subcaves | Visited Clippyterm 2018 | -10/Subcaves | Learned Factory trap positions 2018 | -10/Subcaves | Learned Factory stockpile data 2027 | -10/Subcaves | Befriended Subdweller 2126 | -10/Subcaves | Discovered new exit (range 15) 2188 | -10/Subcaves | Discovered new exit (range 8) 2197 | -10/Subcaves | Befriended Subdweller 2197 | -10/Subcaves | Befriended Subdweller 2357 | -10/Subcaves | Befriended Subdweller 2382 | -10/Subcaves | Befriended Subdweller 2391 | -10/Subcaves | Shifting Twisted Machinery released Mak. Hammer 2498 | -10/Subcaves | Learned location of Zion (-7) 2532 | -10/Subcaves | Befriended Subdweller 2547 | -10/Subcaves | Shifting Twisted Machinery released Mak. Sword 2552 | -10/Subcaves | Befriended Subdweller 2592 | -10/Subcaves | Befriended Subdweller 2651 | -10/Subcaves | Disturbed a concealed Subdweller 2652 | -10/Subcaves | Befriended Subdweller 2658 | -10/Subcaves | Disturbed a concealed Subdweller 2658 | -10/Subcaves | Disturbed a concealed Subdweller 2662 | -10/Subcaves | Befriended Subdweller 2773 | -10/Subcaves | Found Tower Shield 2961 | -10/Subcaves | Entered Recycling 2961 | -9/Recycling | Accompanied by 12 allies 2963 | -9/Recycling | Reached level 5 3037 | -9/Recycling | Reached level 6 3154 | -9/Recycling | Discovered new exit (range 16) 3361 | -9/Recycling | Scanned before Scraplab entrance 3468 | -9/Recycling | Entered Scraplab 3523 | -9/Recycling | Discovered new exit (range 3) 3524 | -9/Recycling | Entered Scraptown 3524 | -9/Scraptown | Accompanied by 17 allies 3524 | -9/Scraptown | System corruption cleaned by C-Scrubber 3526 | -9/Scraptown | Reached level 7 3561 | -9/Scraptown | Delivered V3-11A's Pendant to T0-NE2 in exchange for information 3606 | -9/Scraptown | Discovered new exit (range 11) 3633 | -9/Scraptown | Visited Spacefarers 3640 | -9/Scraptown | Visited Assassins FH 3644 | -9/Scraptown | Visited TADAMA 3647 | -9/Scraptown | Visited Cave Peace 3651 | -9/Scraptown | Visited CPS Storage 3656 | -9/Scraptown | Visited IN-MT5's Study 3665 | -9/Scraptown | Visited SPCMW 3693 | -9/Scraptown | Upgraded with Weapon slot (x1) 3839 | -9/Scraptown | Visited UFD Registry 3839 | -9/Scraptown | Registered with UFD as "Bulletparser" 3877 | -9/Scraptown | Build established: Scavenger-Sprinter 4028 | -9/Scraptown | Visited Science Guys 4047 | -9/Scraptown | Visited Chapter 10 4051 | -9/Scraptown | Visited Abandonware Association 4059 | -9/Scraptown | Visited Scrap Suit Storage 4063 | -9/Scraptown | Visited A0-MCA Data Center 4097 | -9/Scraptown | Visited Scrapoid Research Area 4101 | -9/Scraptown | Visited LU-1G1's Boring Crew 4105 | -9/Scraptown | Visited Junk Repository 4106 | -9/Scraptown | Self-destructed Last Messages --------------- BP-LR4's a beast with that thing. 04051_ LOCAL NARROWCAST: Abandonware Association. Hack the planet. 04054_ LOCAL NARROWCAST: Closed for remodeling. 04059_ LOCAL NARROWCAST: Scrap Suit Storage. 04063_ LOCAL NARROWCAST: A0-MCA Data Center. CM-1EQ(h): I bet Warlord is an MC spy. Why else would he kill fellow Derelicts without hesitation if they get in his way? Everyone is fooled but me. And now you, too, right? 04080_ Multiple signs read "I'm always busy, go away." 04097_ LOCAL NARROWCAST: Scrapoid Research Area. PM-6P9(j): Hey there, Bulletparser, are you a representative, or here for some other purpose? 04101_ LOCAL NARROWCAST: LU-1G1's Boring Crew. We dig so you don't have to. 04105_ LOCAL NARROWCAST: Repository. Map ----- +----------------------------------------------------+ | # #########" | | # #####"""" """"""""""""""""""""""""" | | # #####"""" """"""""""""""""""""""""" | | # #####"""" ""###### ############### | | # #####"""" ""#?? ? ???##?###?# | | # #####"""" ""# ????"???#?##?? | | # ###"#"""" ""#? "" "????##????#?#? | | # ""#"#"""" ""# "" ????X??#?#???## | | # """"#"""" ""# " ??? ?#?###### | | # ""#######" "" "??? ? ? | | # #########" "" "" ????? | | # #########" ""# " ??????#?###### | | # ""# ""? ?""???##?#???## | | # r ""#? "" ""? ????????##? | | # ""# ? ????????#???? | | # ""# ? ??????#??#?# | | # ""###### ############### | | r""""""""""""""""""""""""" | | """"""""""""""""""""""""" | | | | | | j | | #""""#" | | #""""#" | | #""""#"""""" """"""""""" """"""""""" | | ### ### ####" #######@########### ########### | | ## #### ""## ?##??? ??#?? ? | | "## #### ## #?#??# # ??? | | "## #### ?# # # #????# # ?#" | | ""## #### ## #[ !# #??? # # ?#"" | | """## #### ## # =!#/!##?#?#######?## | | ""## #### #########?##?## ? ? ? ## " | | "## #### ########???##?# ???""?# ?#""" | | " "## #### " #########????## # ??"???##""" | | """""## #### #########??##?? ? ?"????#?""" | | ####### ################????### # ?????# " " | | #?##### ##############??#?##?#?##?#?#??##? "" | | ####### ################????#?#??#?###?#???##### | | """"""" ###############?###?#####?#####?##??#### | | " """"" ###### ##"""##"""##"""##"""##""" | | " "" #####? """"""" ## ""##|""##" "##"""##"" | | ##?### """"""" | | "" "" " ###### """"""" | | """"""" ######?""""""" | | """"""" #?#?## """"""" ##"""##"""##"" ##" "##%% | | ?###### ###### ? ??##"""##"""##"""##"""##""" | | ####### ##??#######?#???######################## | | """"""# ##???#???#???#????###??????#??#?##??#??# | | ![! "# ######??#????????????#??????###??#???#?? | | = =! "# ###?##????#???????#?????##?????#???#?#?# | +----------------------------------------------------+ Best States ------------- Heat Dissipation 49 Energy Generation 15 Energy Capacity 250 Matter Stores 300 Matter Capacity 300 Sight Range 16 Terrain Scan Range 16 Terrain Scan Density 310 Armor Coverage 150 Evasion (%) 64 Item Schematics ----------------- None Robot Schematics ------------------ None Fabricated ------------ Nothing Repaired ---------- Nothing Studied --------- None Alien Tech Used ----------------- None Achievements -------------- SUBSUB Challenges ------------ None RPGLIKE | -11 -10 -10 -9 -9 --------- Run | Yrd Mat Sub Rec Scr Levels Raised 6 | . 2 1 2 1 XP Earned 12364 | 3000 3555 2247 2912 650 XP Spent 9890 | 2970 2200 1850 1800 1070 Upgrades 23 | 10 4 2 3 4 Power Slot 1 | . 1 . . . Propulsion Slot 2 | 1 1 . . . Utility Slot 3 | 1 1 1 . . Weapon Slot 2 | 1 . . . 1 Heat Dissipation 4 | 4 . . . . Mass Support 1 | . 1 . . . Inventory Capacity 3 | 2 . 1 . . Terrain Scan Density 3 | . . . . 3 Ranged Accuracy 4 | 1 . . 3 . Protomatter Created 560 | . 230 249 81 . Integrity Restored 1624 | . 663 749 212 . Core 1342 | . 663 539 140 . Parts 282 | . . 210 72 . Protomatter Decayed 91 | . 1 81 9 . Game ------ Seed SpectralSubdwellerFrame Manual? 0 Play Time 00:40:19 Cumulative 456.4 hours Start 2025.11.20 @ 15:50:25 End 2025.11.21 @ 18:46:15 Sessions 5 Manual Loads 0 Difficulty Rogue Special Mode Winter2019/RPGLIKE Game No. 170 Rogue 16 Adventurer 154 Explorer 0 Win Type - Total 18 Types 3/3/3/3/2/1/0/1/1/1 Lore% 92 Gallery% 84 Achievement% 61 Wizard Run 0 Options --------- Layout 2 ASCII 0 Keyboard 0 Movement Numpad Keybinds 0 Fullscreen 2 Font 24/Smallcaps Map View 50x44 Zoom Use 0% Tactical HUD 1 Map Filters NONE Filters NONE Steam 1 RUN: 3207fb3f-7c5e-4c59-83b2-3ac1ae701c46